{"text_format":"2","workbook":"xlsx","n_sheets":2,"sheets":["Dienstwagen Beispiel","Fahrtkosten-Erstattung Beispiel"],"not_rendered":{"charts":0,"images":2,"macros":0,"external_links":0,"defined_names":0,"comments":0,"pivot_tables":0},"unopened":[],"bounds":{"document_bytes":16777216,"sheet_cells":100000,"run_cost":"one","rows_first":2000,"rows_last":500,"rows_between":2000,"halvings":0,"cell_chars":16384,"cell_head_chars":4096},"cells_cut":0,"cells_raw":0,"read":"whole","date_system":"1900"}

{"sheet":"Dienstwagen Beispiel","index":0,"n_rows":26,"n_cols":6,"rows_kept":26,"cut":false,"hidden":false,"merged":[]}
["Beispiel "]
["Bruttolistenpreis",40000]
["Berechnungsmethode Fahrten-Wohnung Tätigkeitsstätte",2.9999999999999997E-4,{"$f":"B2*B3","v":11.999999999999998}]
[]
["Fahrten Wohnung - Tätigkeitsstätte",15]
["Entfernungskilometer Wohnung - Tätigkeitsstätte",50,"km"]
[]
["neben der 1% Dienstwagennutzung ",0.01,null,null,null,{"$f":"B2*B8","v":400}]
["sind 0,03% für Fahrten Wohnung - Tätigkeitsstätte zu versteuern (verbeitragen)",{"$f":"B6","v":50},"km","x ",{"$f":"C3","v":11.999999999999998},{"$f":"B9*E9","v":599.99999999999989}]
["steuerpflichtige Wert für Fahrten Wohnung / Arbeitsstätte"]
[]
["Pauschalbesteuerung Dienstwagen",0.15]
["bis zum 20. km",0.3]
["ab dem 21. km",0.38]
[]
["von den Fahrten Wohnung - Tätigkeitsstätte können pauschal besteuert werden:",null,"km","Tage","Cent/km"]
[]
["für die ersten 20km",null,20,{"$f":"B5","v":15},{"$f":"B13","v":0.3},{"$f":"C18*D18*E18","v":90}]
["ab dem 21. km",null,{"$f":"B6-20","v":30},{"$f":"B5","v":15},{"$f":"B14","v":0.38},{"$f":"C19*D19*E19","v":171}]
[{"$nulls":5},{"$f":"SUM(F18:F19)","v":261}]
[]
["dann bleiben von dem Wert der für Fahrten zwischen Wohnung/Arbeitssttätte zu verbeitragen/versteuern ist folgender Wert pflichtig:"]
[]
["Fahrten Wohnung Tätigkeitsstätte",{"$nulls":4},600]
["abzüglich pauschalbesteuert",{"$nulls":4},{"$f":"-(F20)","v":-261}]
["Restbetrag steuer- und sv-pflichtig",{"$nulls":4},{"$f":"SUM(F24:F25)","v":339}]

{"sheet":"Fahrtkosten-Erstattung Beispiel","index":1,"n_rows":10,"n_cols":15,"rows_kept":10,"cut":false,"hidden":false,"merged":[]}
["Lohnartengruppen > Erstattung / Spesen"]
[]
["pauschale Besteuerung der vom AG übernommenen Aufwendungen für Fahrten/ Wohnung - Tätigkeitsstätte",null,"km","Tage","Cent/km"]
[]
["für die ersten 20km",null,20,{"$f":"F10","v":15},0.3,{"$f":"C5*D5*E5","v":90}]
["ab dem 21. km",null,{"$f":"F9-C5","v":30},{"$f":"F10","v":15},0.38,{"$f":"C6*D6*E6","v":171}]
[{"$nulls":5},{"$f":"SUM(F5:F6)","v":261},{"$nulls":8},"manuell anpassen!"]
[]
["Entfernungskilometer Wohnung - Tätigkeitsstätte",{"$nulls":4},50,"km"]
["Fahrten Wohnung - Tätigkeitsstätte",{"$nulls":4},15,"Tage"]